fUST/lending_fUST_20250828
["ID","MTS","AMOUNT","RATE_DAILY","PERIOD"]
[381806465,1756356653271,-215.000074,0.00020314,2]
[381806466,1756356653280,-152.121067,0.00020314,2]
[381806467,1756356653290,-2543.88304,0.00020314,2]
[381806468,1756356653300,-2543.88304,0.00020314,2]
[381806469,1756356653309,-151.0,0.00020314,2]
[381806470,1756356653319,-151.0,0.00020314,2]
[381806471,1756356653329,-690.683299,0.00020314,2]
[381806472,1756356653339,-2543.88304,0.00020314,2]
[381806473,1756356653349,-690.683299,0.00020314,2]
[381806474,1756356653359,-2543.88304,0.00020314,2]
[381806475,1756356653368,-151.0,0.00020314,2]
[381806476,1756356653378,-151.0,0.00020314,2]
[381806477,1756356653388,-690.683299,0.00020314,2]
[381806478,1756356653397,-690.683299,0.00020314,2]
[381806479,1756356653408,-2543.88304,0.00020314,2]
[381806480,1756356653417,-2543.88304,0.00020314,2]
[381806481,1756356653427,-151.0,0.00020314,2]
[381806482,1756356653436,-690.683299,0.00020314,2]
[381806483,1756356653446,-151.0,0.00020314,2]
[381806484,1756356653455,-690.683299,0.00020314,2]
[381806485,1756356653465,-2543.88304,0.00020314,2]
[381806486,1756356653475,-2543.88304,0.00020314,2]
[381806487,1756356653484,-151.0,0.00020314,2]
[381806488,1756356653493,-690.683299,0.00020314,2]
[381806489,1756356653503,-151.0,0.00020314,2]
[381806490,1756356653516,-690.683299,0.00020314,2]
[381806491,1756356653526,-183.893802,0.00020314,2]
[381806492,1756356653535,-479.19304,0.00020314,2]
[381806493,1756356653544,-479.19304,0.00020314,2]
[381806494,1756356653554,-479.19304,0.00020314,2]
[381806495,1756356653564,-479.19304,0.00020314,2]
[381806496,1756356653574,-479.19304,0.00020314,2]
[381806497,1756356653583,-151.0,0.00020314,2]
[381806498,1756356653595,-479.19304,0.00020314,2]
[381806499,1756356653604,-151.0,0.00020314,2]
[381806500,1756356653614,-479.19304,0.00020314,2]
[381806501,1756356653623,-479.19304,0.00020314,2]
[381806502,1756356653632,-151.0,0.00020314,2]
[381806503,1756356653641,-151.0,0.00020314,2]
[381806504,1756356653652,-170.268147,0.00020314,2]
[381806505,1756356653661,-1068.644021,0.00020314,2]
[381806506,1756356653671,-1068.644021,0.00020314,2]
[381806507,1756356653681,-151.0,0.00020314,2]
[381806508,1756356653690,-151.0,0.00020314,2]
[381806509,1756356653701,-151.0,0.00020314,2]
[381806510,1756356653711,-151.0,0.00020314,2]
[381806511,1756356653721,-1068.644021,0.00020314,2]
[381806512,1756356653730,-151.0,0.00020314,2]
[381806513,1756356653740,-1068.644021,0.00020314,2]
[381806514,1756356653749,-275.006928,0.00020314,2]
[381806515,1756356653759,-1068.644021,0.00020314,2]
[381806516,1756356653769,-1068.644021,0.00020314,2]
[381806517,1756356653778,-1068.644021,0.00020314,2]
[381806518,1756356653787,-1068.644021,0.00020314,2]
[381806519,1756356653797,-216.18903889,0.00020314,7]
[381806520,1756356653807,-151.0,0.00020314,2]
[381806521,1756356653818,-151.0,0.00020314,2]
[381806522,1756356653827,-151.0,0.00020314,2]
[381806523,1756356653836,-151.0,0.00020314,2]
[381806524,1756356653846,-151.0,0.00020314,2]
[381806525,1756356653855,-151.0,0.00020314,2]
[381806526,1756356653866,-151.0,0.00020314,2]
[381806527,1756356653875,-151.0,0.00020314,2]
[381806528,1756356653885,-151.0,0.00020314,2]
[381806529,1756356653894,-151.0,0.00020314,2]
[381806530,1756356653904,-151.0,0.00020314,2]
[381806531,1756356653913,-151.0,0.00020314,2]
[381806532,1756356653923,-151.0,0.00020314,2]
[381806533,1756356653932,-151.0,0.00020314,2]
[381806534,1756356653942,-151.0,0.00020314,2]
[381806535,1756356653951,-159.066194,0.00020314,2]
[381806536,1756356653960,-151.0,0.00020314,2]
[381806537,1756356653970,-151.0,0.00020314,2]
[381806538,1756356653980,-151.0,0.00020314,2]
[381806539,1756356653989,-154.938946,0.00020314,2]
[381806540,1756356653998,-151.0,0.00020314,2]
[381806541,1756356654008,-151.0,0.00020314,2]
[381806542,1756356654017,-151.0,0.00020314,2]
[381806543,1756356654026,-151.0,0.00020314,2]
[381806544,1756356654035,-151.0,0.00020314,2]
[381806545,1756356654045,-151.0,0.00020314,2]
[381806546,1756356654055,-212.354292,0.00020314,2]
[381806547,1756356654064,-151.0,0.00020314,2]
[381806548,1756356654073,-151.0,0.00020314,2]
[381806549,1756356654083,-151.0,0.00020314,2]
[381806550,1756356654095,-367.0,0.00020339,2]
[381806551,1756356654104,-2524.82941417,0.00020352,2]
[381806552,1756356654114,-11576.97975024,0.00020364,2]
[381806553,1756356654123,-500.0,0.00020373,2]
[381806554,1756356654133,-500.0,0.00020373,2]
[381806555,1756356654142,-529.15628133,0.00020373,2]
[381806556,1756356654152,-500.0,0.00020373,2]
[381806557,1756356654162,-500.0,0.00020373,2]
[381806558,1756356654171,-500.0,0.00020373,2]
[381806559,1756356654180,-500.0,0.00020373,2]
[381806560,1756356654189,-562.32358633,0.00020373,2]
[381806561,1756356654199,-500.0,0.00020373,2]
[381806562,1756356654208,-505.91835226,0.00020373,2]
[381806563,1756356654217,-500.0,0.00020373,2]
[381806564,1756356654227,-500.0,0.00020373,2]
[381806565,1756356654236,-500.0,0.00020373,2]
[381806566,1756356654245,-500.0,0.00020373,2]
[381806567,1756356654255,-500.0,0.00020373,2]
[381806568,1756356654265,-500.0,0.00020373,2]
[381806569,1756356654274,-165.91496876,0.00020373,2]
[381806570,1756356654283,-500.0,0.00020373,2]
[381806571,1756356654293,-500.0,0.00020373,2]
[381806572,1756356654302,-424.44878294,0.00020373,2]
[381806573,1756356654312,-500.0,0.00020373,2]
[381806574,1756356654321,-500.0,0.00020373,2]
[381806575,1756356654332,-514.00630012,0.00020373,2]
[381806576,1756356654345,-500.0,0.00020373,2]
[381806577,1756356654354,-501.53057373,0.00020373,2]
[381806578,1756356654365,-500.0,0.00020373,2]
[381806579,1756356654375,-500.0,0.00020373,2]
[381806580,1756356654384,-500.0,0.00020373,2]
[381806581,1756356654394,-502.97496908,0.00020373,2]
[381806582,1756356654404,-501.67085831,0.00020373,2]
[381806583,1756356654413,-500.0,0.00020373,2]
[381806584,1756356654423,-500.0,0.00020373,2]
[381806585,1756356654432,-500.0,0.00020373,2]
[381806586,1756356654441,-649.91858222,0.00020373,2]
[381806587,1756356654451,-500.0,0.00020373,2]
[381806588,1756356654460,-500.30488028,0.00020373,2]
[381806589,1756356654470,-500.0,0.00020373,2]
[381806590,1756356654479,-15346.99704444,0.00020375,2]
[381806591,1756356654489,-480.0,0.00020388,2]
[381806592,1756356654498,-480.0,0.00020388,2]
[381806593,1756356654509,-480.0,0.00020388,2]
[381806594,1756356654523,-939.37,0.00020388,2]
[381806595,1756356654533,-480.0,0.00020388,2]
[381806596,1756356654542,-500.63,0.00020388,2]
[381806597,1756356654552,-480.0,0.00020388,2]
[381806598,1756356654562,-480.0,0.00020388,2]
[381806599,1756356654572,-480.0,0.00020388,2]
[381806600,1756356654582,-480.0,0.00020388,2]
[381806601,1756356654594,-480.0,0.00020388,2]
[381806602,1756356654603,-480.0,0.00020388,2]
[381806603,1756356654613,-480.0,0.00020388,2]
[381806604,1756356654622,-480.0,0.00020388,2]
[381806605,1756356654631,-480.0,0.00020388,2]
[381806606,1756356654641,-308.54855525,0.00020388,2]
[381806607,1756356654651,-480.0,0.00020388,2]
[381806608,1756356654660,-480.0,0.00020388,2]
[381806609,1756356654670,-480.0,0.00020388,2]
[381806610,1756356654681,-480.0,0.00020388,2]
[381806611,1756356654691,-481.68499637,0.00020388,2]
[381806612,1756356654701,-481.84718001,0.00020388,2]
[381806613,1756356654711,-546.88648319,0.00020388,2]
[381806614,1756356654722,-644.18,0.00020388,2]
[381806615,1756356654731,-480.0,0.00020388,2]
[381806616,1756356654740,-480.0,0.00020388,2]
[381806617,1756356654750,-480.0,0.00020388,2]
[381806618,1756356654760,-480.90412384,0.00020388,2]
[381806619,1756356654769,-480.0,0.00020388,2]
[381806620,1756356654780,-480.0,0.00020388,2]
[381806621,1756356654789,-480.0,0.00020388,2]
[381806622,1756356654799,-480.0,0.00020388,2]
[381806623,1756356654808,-480.0,0.00020388,2]
[381806624,1756356654820,-480.0,0.00020388,2]
[381806625,1756356654830,-480.0,0.00020388,2]
[381806626,1756356654840,-480.0,0.00020388,2]
[381806627,1756356654850,-480.0,0.00020388,2]
[381806628,1756356654859,-480.0,0.00020388,2]
[381806629,1756356654869,-480.0,0.00020388,2]
[381806630,1756356654879,-480.0,0.00020388,2]
[381806631,1756356654889,-480.0,0.00020388,2]
[381806632,1756356654898,-480.0,0.00020388,2]
[381806633,1756356654908,-450.79996798,0.00020388,2]
[381806634,1756356654918,-480.0,0.00020388,2]
[381806635,1756356654927,-480.0,0.00020388,2]
[381806636,1756356654937,-617.45,0.00020388,2]
[381806637,1756356654946,-570.55,0.00020388,2]
[381806638,1756356654956,-480.0,0.00020388,2]
[381806639,1756356654965,-480.0,0.00020388,2]
[381806640,1756356654975,-616.29,0.00020388,2]
[381806641,1756356654984,-1200.27,0.00020388,2]
[381806642,1756356654994,-480.0,0.00020388,2]
[381806643,1756356655004,-480.0,0.00020388,2]
[381806644,1756356655013,-480.0,0.00020388,2]
[381806645,1756356655022,-480.0,0.00020388,2]
[381806646,1756356655032,-601.73,0.00020388,2]
[381806647,1756356655042,-480.0,0.00020388,2]
[381806648,1756356655051,-480.0,0.00020388,2]
[381806649,1756356655061,-480.0,0.00020388,2]
[381806650,1756356655070,-480.0,0.00020388,2]
[381806651,1756356655079,-434.49,0.00020388,2]
[381806652,1756356655090,-480.0,0.00020388,2]
[381806653,1756356655099,-480.0,0.00020388,2]
[381806654,1756356655109,-480.0,0.00020388,2]
[381806655,1756356655118,-480.0,0.00020388,2]
[381806656,1756356655128,-1428.02,0.00020388,2]
[381806657,1756356655137,-481.28382421,0.00020388,2]
[381806658,1756356655147,-480.0,0.00020388,2]
[381806659,1756356655156,-480.0,0.00020388,2]
[381806660,1756356655166,-480.0,0.00020388,2]
[381806661,1756356655176,-480.0,0.00020388,2]
[381806662,1756356655185,-2722.72,0.00020388,2]
[381806663,1756356655195,-480.0,0.00020388,2]
[381806664,1756356655205,-480.0,0.00020388,2]
[381806665,1756356655215,-480.0,0.00020388,2]
[381806666,1756356655225,-480.0,0.00020388,2]
[381806667,1756356655235,-480.0,0.00020388,2]
[381806668,1756356655245,-480.0,0.00020388,2]
[381806669,1756356655255,-480.0,0.00020388,2]
[381806670,1756356655265,-481.10306388,0.00020388,2]
[381806671,1756356655274,-480.0,0.00020388,2]
[381806672,1756356655284,-480.0,0.00020388,2]
[381806673,1756356655293,-4245.17,0.00020388,2]
[381806674,1756356655303,-480.0,0.00020388,2]
[381806675,1756356655312,-480.0,0.00020388,2]
[381806676,1756356655322,-480.0,0.00020388,2]
[381806677,1756356655332,-480.0,0.00020388,2]
[381806678,1756356655346,-511.38866386,0.00020388,2]
[381806679,1756356655356,-480.0,0.00020388,2]
[381806680,1756356655367,-480.0,0.00020388,2]
[381806681,1756356655377,-480.0,0.00020388,2]
[381806682,1756356655387,-480.0,0.00020388,2]
[381806683,1756356655398,-480.0,0.00020388,2]
[381806684,1756356655408,-481.84747336,0.00020388,2]
[381806685,1756356655579,-480.0,0.00020388,2]
[381806686,1756356655590,-541.84,0.00020388,2]
[381806687,1756356655599,-480.0,0.00020388,2]
[381806688,1756356655609,-480.0,0.00020388,2]
[381806689,1756356655619,-480.0,0.00020388,2]
[381806690,1756356655628,-480.0,0.00020388,2]
[381806691,1756356655637,-480.0,0.00020388,2]
[381806692,1756356655647,-480.0,0.00020388,2]
[381806693,1756356655657,-480.0,0.00020388,2]
[381806694,1756356655667,-480.0,0.00020388,2]
[381806695,1756356655677,-568.72,0.00020388,2]
[381806696,1756356655686,-506.03267917,0.00020388,2]
[381806697,1756356655696,-480.0,0.00020388,2]
[381806698,1756356655705,-1881.85,0.00020388,2]
[381806699,1756356655715,-480.0,0.00020388,2]
[381806700,1756356655724,-480.0,0.00020388,2]
[381806701,1756356655733,-480.0,0.00020388,2]
[381806702,1756356655743,-662.5,0.00020388,2]
[381806703,1756356655754,-554.0,0.00020388,2]
[381806704,1756356655763,-480.0,0.00020388,2]
[381806705,1756356655772,-480.0,0.00020388,2]
[381806706,1756356655782,-483.3933509,0.00020388,2]
[381806707,1756356655791,-480.0,0.00020388,2]
[381806708,1756356655801,-627.53,0.00020388,2]
[381806709,1756356655810,-480.0,0.0002039,2]
[381806710,1756356655819,-2673.38,0.0002039,2]
[381806711,1756356655829,-3486.98,0.0002039,2]
[381806712,1756356655840,-1278.52,0.0002039,2]
[381806713,1756356655849,-562.42,0.0002039,2]
[381806714,1756356655859,-480.0,0.0002039,2]
[381806715,1756356655868,-1660.3,0.0002039,2]
[381806716,1756356655878,-480.0,0.0002039,2]
[381806717,1756356655887,-297.14,0.0002039,2]
[381806718,1756356655896,-941.02,0.0002039,2]
[381806719,1756356655906,-811.95,0.0002039,2]
[381806720,1756356655916,-1515.77,0.0002039,2]
[381806721,1756356655925,-592.54,0.0002039,2]
[381806722,1756356655934,-760.29,0.0002039,2]
[381806723,1756356655943,-1016.7,0.0002039,2]
[381806724,1756356655953,-480.0,0.0002039,2]
[381806725,1756356655963,-480.0,0.0002039,2]
[381806726,1756356655973,-530.32,0.0002039,2]
[381806727,1756356655982,-1850.6,0.0002039,2]
[381806728,1756356655993,-1997.18,0.0002039,2]
[381806729,1756356656003,-1812.86,0.0002039,2]
[381806730,1756356656023,-151.0,0.0002039,2]
[381806731,1756356656037,-151.0,0.0002039,2]
[381806732,1756356656046,-230.572196,0.0002039,2]
[381806733,1756356656057,-542.84,0.0002039,2]
[381806734,1756356656067,-151.0,0.0002039,2]
[381806735,1756356656077,-151.0,0.0002039,2]
[381806736,1756356656088,-151.0,0.0002039,2]
[381806737,1756356656098,-152.256969,0.0002039,2]
[381806738,1756356656108,-151.0,0.0002039,2]
[381806739,1756356656118,-151.0,0.0002039,2]
[381806740,1756356656128,-151.0,0.0002039,2]
[381806741,1756356656138,-151.0,0.0002039,2]
[381806742,1756356656147,-151.0,0.0002039,2]
[381806743,1756356656158,-151.0,0.000204,3]
[381806744,1756356656168,-151.0,0.000204,3]
[381806745,1756356656178,-151.0,0.000204,3]
[381806746,1756356656188,-151.0,0.000204,4]
[381806747,1756356656198,-151.0,0.000204,3]
[381806748,1756356656209,-151.0,0.000204,4]
[381806749,1756356656219,-151.0,0.000204,4]
[381806750,1756356656229,-151.0,0.000204,3]
[381806751,1756356656239,-151.0,0.000204,3]
[381806752,1756356656249,-151.0,0.000204,3]
[381806753,1756356656259,-151.0,0.000204,3]
[381806754,1756356656271,-151.0,0.000204,4]
[381806755,1756356656281,-151.0,0.000204,4]
[381806756,1756356656291,-1207.7041043,0.000204,2]
[381806757,1756356656302,-2618.2481025,0.00020407,2]
[381806758,1756356656311,-644.88193303,0.00020409,2]
[381806759,1756356656321,-800.0,0.00020424,2]
[381806760,1756356656330,-220.0,0.00020431,2]
[381806761,1756356656341,-343.6040668,0.00020454,2]
[381806762,1756356656351,-938.43168018,0.00020454,2]
[381806763,1756356656363,-480.0,0.00020458,2]
[381806764,1756356656373,-480.0,0.00020458,2]
[381806765,1756356656384,-480.0,0.00020458,2]
[381806766,1756356656394,-512.47,0.00020458,2]
[381806767,1756356656404,-480.0,0.00020458,2]
[381806768,1756356656413,-708.4,0.00020458,2]
[381806769,1756356656424,-1021.12,0.00020458,2]
[381806770,1756356656433,-1536.3,0.00020458,2]
[381806771,1756356656443,-480.0,0.00020458,2]
[381806772,1756356656453,-480.0,0.00020458,2]
[381806773,1756356656463,-853.77,0.00020458,2]
[381806774,1756356656472,-481.53008433,0.00020458,2]
[381806775,1756356656482,-584.77,0.00020458,2]
[381806776,1756356656493,-480.0,0.00020458,2]
[381806777,1756356656503,-481.51322124,0.00020458,2]
[381806778,1756356656514,-480.0,0.00020458,2]
[381806779,1756356656525,-545.28,0.00020458,2]
[381806780,1756356656535,-214.64421554,0.00020458,2]
[381806781,1756356656544,-686.06,0.00020458,2]
[381806782,1756356656554,-480.0,0.00020458,2]
[381806783,1756356656564,-694.72,0.00020458,2]
[381806784,1756356656574,-480.0,0.00020458,2]
[381806785,1756356656583,-480.0,0.00020458,2]
[381806786,1756356656594,-1147.93,0.00020458,2]
[381806787,1756356656603,-677.79,0.00020458,2]
[381806788,1756356656612,-352.93863762,0.00020458,2]
[381806789,1756356656622,-480.61514323,0.00020458,2]
[381806790,1756356656631,-1123.67,0.00020458,2]
[381806791,1756356656641,-544.12,0.00020458,2]
[381806792,1756356656650,-776.24,0.00020458,2]
[381806793,1756356656660,-480.0,0.00020458,2]
[381806794,1756356656670,-518.51,0.00020458,2]
[381806795,1756356656680,-417.00110443,0.00020458,2]
[381806796,1756356656690,-498.32,0.00020458,2]
[381806797,1756356656700,-1614.03,0.00020458,2]
[381806798,1756356656710,-481.42441539,0.00020458,2]
[381806799,1756356656720,-997.72,0.00020458,2]
[381806800,1756356656729,-586.07,0.00020458,2]
[381806801,1756356656739,-480.0,0.00020458,2]
[381806802,1756356656749,-487.54,0.00020458,2]
[381806803,1756356656758,-535.44,0.00020458,2]
[381806804,1756356656767,-687.49,0.00020458,2]
[381806805,1756356656777,-480.0,0.00020458,2]
[381806806,1756356656787,-783.92,0.00020458,2]
[381806807,1756356656796,-855.7,0.00020458,2]
[381806808,1756356656806,-480.0,0.00020458,2]
[381806809,1756356656816,-480.0,0.00020458,2]
[381806810,1756356656826,-501.01,0.00020458,2]
[381806811,1756356656836,-543.48,0.00020458,2]
[381806812,1756356656846,-484.66674664,0.00020458,2]
[381806813,1756356656856,-1003.05,0.00020458,2]
[381806814,1756356656865,-1200.0,0.00020458,2]
[381806815,1756356656874,-480.0,0.00020458,2]
[381806816,1756356656885,-1135.77,0.00020458,2]
[381806817,1756356656894,-921.25,0.00020458,2]
[381806818,1756356656905,-736.35,0.00020458,2]
[381806819,1756356656914,-480.0,0.00020458,2]
[381806820,1756356656924,-489.03,0.00020458,2]
[381806821,1756356656933,-480.0,0.00020458,2]
[381806822,1756356656942,-1501.6,0.00020458,2]
[381806823,1756356656952,-480.0,0.00020458,2]
[381806824,1756356656962,-480.0,0.00020458,2]
[381806825,1756356656971,-586.28,0.00020458,2]
[381806826,1756356656980,-480.0,0.00020458,2]
[381806827,1756356656989,-687.31,0.00020458,2]
[381806828,1756356656999,-480.0,0.00020458,2]
[381806829,1756356657008,-490.1,0.00020458,2]
[381806830,1756356657018,-543.14,0.00020458,2]
[381806831,1756356657027,-1457.75,0.00020458,2]
[381806832,1756356657036,-451.61536031,0.00020458,2]
[381806833,1756356657046,-480.0,0.00020458,2]
[381806834,1756356657055,-480.0,0.00020458,2]
[381806835,1756356657065,-1828.87,0.00020458,2]
[381806836,1756356657075,-291.246734,0.00020458,2]
[381806837,1756356657084,-480.0,0.00020458,2]
[381806838,1756356657094,-151.0,0.00020458,2]
[381806839,1756356657104,-480.0,0.00020458,2]
[381806840,1756356657113,-291.246734,0.00020458,2]
[381806841,1756356657122,-291.246734,0.00020458,2]
[381806842,1756356657133,-751.047081,0.00020458,2]
[381806843,1756356657143,-480.0,0.00020458,2]
[381806844,1756356657154,-480.0,0.00020458,2]
[381806845,1756356657163,-751.047081,0.00020458,2]
[381806846,1756356657173,-291.246734,0.00020458,2]
[381806847,1756356657182,-480.0,0.00020458,2]
[381806848,1756356657191,-751.047081,0.00020458,2]
[381806849,1756356657201,-480.0,0.00020458,2]
[381806850,1756356657210,-751.047081,0.00020458,2]
[381806851,1756356657220,-503.14,0.00020458,2]
[381806852,1756356657229,-480.0,0.00020458,2]
[381806853,1756356657239,-151.0,0.00020458,2]
[381806854,1756356657248,-151.0,0.00020458,2]
[381806855,1756356657258,-151.0,0.00020458,2]
[381806856,1756356657267,-151.0,0.00020458,2]
[381806857,1756356657276,-480.0,0.00020458,2]
[381806858,1756356657286,-216.656474,0.00020458,2]
[381806859,1756356657295,-480.0,0.00020458,2]
[381806860,1756356657304,-749.19,0.00020458,2]
[381806861,1756356657313,-1023.93,0.00020458,2]
[381806862,1756356657323,-156.32959,0.00020458,2]
[381806863,1756356657332,-151.0,0.00020458,2]
[381806864,1756356657342,-4065.99,0.00020458,2]
[381806865,1756356657351,-151.0,0.00020458,2]
[381806866,1756356657360,-480.0,0.00020458,2]
[381806867,1756356657369,-151.0,0.00020458,2]
[381806868,1756356657379,-571.63,0.00020458,2]
[381806869,1756356657388,-151.0,0.00020458,2]
[381806870,1756356657398,-151.0,0.00020458,2]
[381806871,1756356657408,-480.0,0.00020458,2]
[381806872,1756356657418,-480.0,0.00020458,2]
[381806873,1756356657427,-1376.72,0.00020458,2]
[381806874,1756356657436,-480.0,0.00020458,2]
[381806875,1756356657446,-480.0,0.00020458,2]
[381806876,1756356657456,-2543.88304,0.00020458,2]
[381806877,1756356657465,-151.0,0.00020458,2]
[381806878,1756356657474,-690.683299,0.00020458,2]
[381806879,1756356657483,-2543.88304,0.00020458,2]
[381806880,1756356657493,-2297.07,0.00020458,2]
[381806881,1756356657504,-151.0,0.00020458,2]
[381806882,1756356657518,-799.5,0.00020458,2]
[381806883,1756356657530,-690.683299,0.00020458,2]
[381806884,1756356657539,-2543.88304,0.00020458,2]
[381806885,1756356657549,-277.52443,0.00020458,2]
[381806886,1756356657558,-690.683299,0.00020458,2]
[381806887,1756356657567,-2543.88304882,0.00020458,2]
[381806888,1756356657577,-480.0,0.00020458,2]
[381806889,1756356657588,-690.683308,0.00020458,2]
[381806890,1756356657599,-151.0,0.00020458,2]
[381806891,1756356657608,-480.0,0.00020458,2]
[381806892,1756356657617,-633.53,0.00020458,2]
[381806893,1756356657626,-479.19304,0.00020458,2]
[381806894,1756356657635,-479.19304,0.00020458,2]
[381806895,1756356657644,-480.0,0.00020458,2]
[381806896,1756356657654,-479.19304,0.00020458,2]
[381806897,1756356657664,-151.0,0.00020458,2]
[381806898,1756356657674,-479.193031,0.00020458,2]
[381806899,1756356657683,-480.0,0.00020458,2]
[381806900,1756356657693,-151.0,0.00020458,2]
[381806901,1756356657702,-480.0,0.00020458,2]
[381806902,1756356657711,-480.0,0.00020458,2]
[381806903,1756356657720,-480.0,0.00020458,2]
[381806904,1756356657730,-1204.91,0.00020458,2]
[381806905,1756356657739,-480.0,0.00020458,2]
[381806906,1756356657748,-1068.644021,0.00020458,2]
[381806907,1756356657758,-151.0,0.00020458,2]
[381806908,1756356657767,-151.0,0.00020458,2]
[381806909,1756356657777,-1068.644021,0.00020458,2]
[381806910,1756356657786,-1068.644021,0.00020458,2]
[381806911,1756356657795,-664.77,0.00020458,2]
[381806912,1756356657804,-1068.644021,0.00020458,2]
[381806913,1756356657813,-481.82642187,0.00020458,2]
[381806914,1756356657822,-480.0,0.00020458,2]
[381806915,1756356657831,-691.19,0.00020458,2]
[381806916,1756356657840,-480.0,0.00020458,2]
[381806917,1756356657849,-2715.12328229,0.00020462,2]
[381806918,1756356657858,-480.0,0.00020462,2]
[381806919,1756356657867,-480.0,0.00020462,2]
[381806920,1756356657877,-481.39683367,0.00020462,2]
[381806921,1756356657886,-480.0,0.00020462,2]
[381806922,1756356657895,-3421.67,0.00020462,2]
[381806923,1756356657904,-2533.07,0.00020462,2]
[381806924,1756356657913,-480.0,0.00020462,2]
[381806925,1756356657922,-480.0,0.00020462,2]
[381806926,1756356657931,-480.0,0.00020462,2]
[381806927,1756356657940,-480.0,0.00020462,2]
[381806928,1756356657949,-480.0,0.00020462,2]
[381806929,1756356657959,-618.76,0.00020462,2]
[381806930,1756356657968,-1162.67,0.00020462,2]
[381806931,1756356657977,-480.0,0.00020462,2]
[381806932,1756356657987,-151.0,0.00020462,2]
[381806933,1756356657996,-151.0,0.00020462,2]
[381806934,1756356658005,-990.59,0.00020462,2]
[381806935,1756356658014,-151.0,0.00020462,2]
[381806936,1756356658023,-151.0,0.00020462,2]
[381806937,1756356658033,-151.0,0.00020462,2]
[381806938,1756356658042,-151.0,0.00020462,2]
[381806939,1756356658051,-151.0,0.00020462,2]
[381806940,1756356658060,-480.0,0.00020462,2]
[381806941,1756356658069,-245.682429,0.00020462,2]
[381806942,1756356658077,-245.682429,0.00020462,2]
[381806943,1756356658088,-245.682429,0.00020462,2]
[381806944,1756356658097,-416.473097,0.00020462,2]
[381806945,1756356658106,-245.682429,0.00020462,2]
[381806946,1756356658115,-416.473097,0.00020462,2]
[381806947,1756356658124,-416.473097,0.00020462,2]
[381806948,1756356658133,-416.473097,0.00020462,2]
[381806949,1756356658142,-5148.52,0.00020462,2]
[381806950,1756356658151,-151.0,0.00020462,2]
[381806951,1756356658161,-151.0,0.00020462,2]
[381806952,1756356658170,-151.0,0.00020462,2]
[381806953,1756356658179,-151.0,0.00020462,2]
[381806954,1756356658188,-151.0,0.00020462,2]
[381806955,1756356658198,-611.25,0.00020462,2]
[381806956,1756356658207,-334.16192702,0.00020462,2]
[381806957,1756356658216,-151.0,0.00020462,2]
[381806958,1756356658225,-151.0,0.00020462,2]
[381806959,1756356658234,-2671.32,0.00020462,2]
[381806960,1756356658243,-233.463302,0.00020462,2]
[381806961,1756356658252,-233.463302,0.00020462,2]
[381806962,1756356658262,-233.463302,0.00020462,2]
[381806963,1756356658271,-233.463302,0.00020462,2]
[381806964,1756356658280,-649.08,0.00020462,2]